[Event "Titled Tuesday Blitz May 16 Early 2023"]
[White "Vaishali, Rameshbabu"]
[Black "Grossboss19"]
[WhiteFideId "5091756"]
[WhiteElo "2410"]
[BlackElo "2444"]
[Result "1-0"]
[Round "02"]
[TimeControl "180+2"]
[Date "2023.05.16"]
[WhiteClock "0:00:05"]
[BlackClock "0:00:10"]

1. d4 {[%clk 0:03:00]}  Nf6 {[%clk 0:02:58]} 2. Nf3 {[%clk 0:02:58]}  g6 {[%clk 0:02:57]} 3. g3 {[%clk 0:02:56]}  d5 {[%clk 0:02:57]} 4. Bg2 {[%clk 0:02:56]}  Bg7 {[%clk 0:02:57]} 5. O-O {[%clk 0:02:56]}  O-O {[%clk 0:02:56]} 6. c4 {[%clk 0:02:56]}  c6 {[%clk 0:02:57]} 7. a4 {[%clk 0:02:56]}  a5 {[%clk 0:02:54]} 8. cxd5 {[%clk 0:02:49]}  cxd5 {[%clk 0:02:52]} 9. Nc3 {[%clk 0:02:46]}  Ne4 {[%clk 0:02:52]} 10. Qb3 {[%clk 0:02:43]}  e6 {[%clk 0:02:32]} 11. Bf4 {[%clk 0:02:34]}  Nc6 {[%clk 0:02:25]} 12. Nb5 {[%clk 0:02:29]}  g5 {[%clk 0:02:19]} 13. Be3 {[%clk 0:02:05]}  Nb4 {[%clk 0:02:09]} 14. Ne5 {[%clk 0:01:42]}  f6 {[%clk 0:01:52]} 15. Nd3 {[%clk 0:01:36]}  Nxd3 {[%clk 0:01:47]} 16. exd3 {[%clk 0:01:37]}  Nd6 {[%clk 0:01:47]} 17. Rfc1 {[%clk 0:01:17]}  Nxb5 {[%clk 0:01:29]} 18. Qxb5 {[%clk 0:01:17]}  Bd7 {[%clk 0:01:28]} 19. Qxb7 {[%clk 0:01:06]}  Rb8 {[%clk 0:01:28]} 20. Qa7 {[%clk 0:01:06]}  Rxb2 {[%clk 0:01:27]} 21. Rc7 {[%clk 0:01:05]}  Rf7 {[%clk 0:01:26]} 22. Rac1 {[%clk 0:01:01]}  Bf8 {[%clk 0:01:14]} 23. Qxa5 {[%clk 0:00:48]}  Bd6 {[%clk 0:01:03]} 24. Rc8 {[%clk 0:00:43]}  Qxc8 {[%clk 0:01:03]} 25. Rxc8+ {[%clk 0:00:42]}  Bxc8 {[%clk 0:01:03]} 26. Qd8+ {[%clk 0:00:42]}  Rf8 {[%clk 0:00:57]} 27. Qxd6 {[%clk 0:00:42]}  Rb1+ {[%clk 0:00:57]} 28. Bf1 {[%clk 0:00:42]}  e5 {[%clk 0:00:56]} 29. Qxd5+ {[%clk 0:00:39]}  Kh8 {[%clk 0:00:56]} 30. Qc5 {[%clk 0:00:30]}  Rg8 {[%clk 0:00:51]} 31. Qc2 {[%clk 0:00:22]}  Re1 {[%clk 0:00:38]} 32. Bd2 {[%clk 0:00:21]}  Ra1 {[%clk 0:00:37]} 33. Bc3 {[%clk 0:00:21]}  Ra3 {[%clk 0:00:38]} 34. Bb2 {[%clk 0:00:16]}  Ra2 {[%clk 0:00:36]} 35. dxe5 {[%clk 0:00:16]}  Be6 {[%clk 0:00:32]} 36. exf6 {[%clk 0:00:15]}  Bf7 {[%clk 0:00:32]} 37. h4 {[%clk 0:00:11]}  gxh4 {[%clk 0:00:29]} 38. Bg2 {[%clk 0:00:05]}  Rb8 {[%clk 0:00:21]} 39. Qc7 {[%clk 0:00:04]}  Rf8 {[%clk 0:00:18]} 40. Qe7 {[%clk 0:00:03]}  Kg8 {[%clk 0:00:18]} 41. Qe5 {[%clk 0:00:04]}  hxg3 {[%clk 0:00:14]} 42. Bd5 {[%clk 0:00:04]}  gxf2+ {[%clk 0:00:14]} 43. Kg2 {[%clk 0:00:04]}  Kh8 {[%clk 0:00:12]} 44. Bxf7 {[%clk 0:00:04]}  f1=Q+ {[%clk 0:00:10]} 45. Kxf1 {[%clk 0:00:04]}  Rxb2 {[%clk 0:00:11]} 46. Qxb2 {[%clk 0:00:04]}  Rxf7 {[%clk 0:00:10]} 47. Qb8+ {[%clk 0:00:05]} 1-0


[Site "https://www.chess.com"]

[Event "Titled Tuesday Blitz May 16 Early 2023"]
[White "Kalajzic, Ivan"]
[Black "Prohaszka, Peter"]
[WhiteFideId "14506378"]
[BlackFideId "726265"]
[WhiteElo "2203"]
[BlackElo "2626"]
[Result "1-0"]
[Round "02"]
[TimeControl "180+2"]
[Date "2023.05.16"]
[WhiteClock "0:00:15"]
[BlackClock "0:00:00"]

1. b3 {[%clk 0:03:00]}  d5 {[%clk 0:02:59]} 2. Bb2 {[%clk 0:03:01]}  Bf5 {[%clk 0:02:58]} 3. e3 {[%clk 0:03:01]}  e6 {[%clk 0:02:58]} 4. Nf3 {[%clk 0:03:01]}  h6 {[%clk 0:02:57]} 5. d4 {[%clk 0:03:01]}  Nf6 {[%clk 0:02:57]} 6. Bd3 {[%clk 0:03:01]}  c6 {[%clk 0:02:53]} 7. Nbd2 {[%clk 0:03:00]}  Nbd7 {[%clk 0:02:53]} 8. O-O {[%clk 0:03:00]}  Bd6 {[%clk 0:02:53]} 9. Ne5 {[%clk 0:03:00]}  Ne4 {[%clk 0:02:49]} 10. f3 {[%clk 0:02:45]}  Nxd2 {[%clk 0:02:39]} 11. Qxd2 {[%clk 0:02:46]}  Bxd3 {[%clk 0:02:21]} 12. Nxd3 {[%clk 0:02:32]}  Qh4 {[%clk 0:02:08]} 13. g3 {[%clk 0:02:30]}  Qh5 {[%clk 0:02:07]} 14. e4 {[%clk 0:02:25]}  O-O {[%clk 0:01:59]} 15. e5 {[%clk 0:02:24]}  Bc7 {[%clk 0:01:54]} 16. Nf4 {[%clk 0:01:55]}  Qf5 {[%clk 0:01:52]} 17. g4 {[%clk 0:01:51]}  Qh7 {[%clk 0:01:52]} 18. Qd3 {[%clk 0:01:41]}  Bb6 {[%clk 0:01:48]} 19. Kg2 {[%clk 0:01:35]}  Rfe8 {[%clk 0:01:39]} 20. Qxh7+ {[%clk 0:01:34]}  Kxh7 {[%clk 0:01:40]} 21. c4 {[%clk 0:01:32]}  dxc4 {[%clk 0:01:23]} 22. bxc4 {[%clk 0:01:33]}  c5 {[%clk 0:01:24]} 23. d5 {[%clk 0:01:21]}  exd5 {[%clk 0:01:25]} 24. Nxd5 {[%clk 0:01:21]}  Nxe5 {[%clk 0:01:25]} 25. Bxe5 {[%clk 0:01:20]}  Rxe5 {[%clk 0:01:26]} 26. Rfe1 {[%clk 0:01:15]}  Rae8 {[%clk 0:01:21]} 27. Rxe5 {[%clk 0:01:15]}  Rxe5 {[%clk 0:01:22]} 28. Kf2 {[%clk 0:01:12]}  Bd8 {[%clk 0:01:20]} 29. Rd1 {[%clk 0:01:09]}  Bh4+ {[%clk 0:01:19]} 30. Kf1 {[%clk 0:01:08]}  f5 {[%clk 0:01:00]} 31. h3 {[%clk 0:01:04]}  fxg4 {[%clk 0:00:58]} 32. hxg4 {[%clk 0:01:04]}  b6 {[%clk 0:00:54]} 33. a4 {[%clk 0:01:00]}  h5 {[%clk 0:00:49]} 34. gxh5 {[%clk 0:00:59]}  Rxh5 {[%clk 0:00:48]} 35. Ke2 {[%clk 0:00:44]}  Re5+ {[%clk 0:00:45]} 36. Kd3 {[%clk 0:00:44]}  Bf2 {[%clk 0:00:44]} 37. Rh1+ {[%clk 0:00:34]}  Kg8 {[%clk 0:00:44]} 38. Rh2 {[%clk 0:00:29]}  Bd4 {[%clk 0:00:43]} 39. Ra2 {[%clk 0:00:28]}  Kf7 {[%clk 0:00:37]} 40. f4 {[%clk 0:00:25]}  Rh5 {[%clk 0:00:36]} 41. Ke4 {[%clk 0:00:23]}  Rh1 {[%clk 0:00:12]} 42. a5 {[%clk 0:00:23]}  Re1+ {[%clk 0:00:12]} 43. Kf3 {[%clk 0:00:22]}  Rb1 {[%clk 0:00:10]} 44. axb6 {[%clk 0:00:22]}  axb6 {[%clk 0:00:11]} 45. Ra7+ {[%clk 0:00:22]}  Kg6 {[%clk 0:00:09]} 46. Rb7 {[%clk 0:00:22]}  Rc1 {[%clk 0:00:07]} 47. Nxb6 {[%clk 0:00:21]}  Rb1 {[%clk 0:00:06]} 48. Ke4 {[%clk 0:00:19]}  Rb2 {[%clk 0:00:03]} 49. Rb8 {[%clk 0:00:19]}  Kh7 {[%clk 0:00:03]} 50. Nd7 {[%clk 0:00:19]}  Re2+ {[%clk 0:00:03]} 51. Kd5 {[%clk 0:00:18]}  Re7 {[%clk 0:00:01]} 52. Nxc5 {[%clk 0:00:16]}  Be3 {[%clk 0:00:01]} 53. Ne6 {[%clk 0:00:15]}  Rd7+ {[%clk 0:00:01]} 54. Ke5 {[%clk 0:00:15]}  Ra7 {[%clk 0:00:00]} 55. c5 {[%clk 0:00:15]} 1-0


[Site "https://www.chess.com"]

[Event "Titled Tuesday Blitz May 16 Early 2023"]
[White "Orzech, Dominik"]
[Black "Prraneeth Vuppala"]
[WhiteFideId "1115065"]
[BlackFideId "46622373"]
[WhiteElo "2260"]
[BlackElo "2299"]
[Result "1-0"]
[Round "02"]
[TimeControl "180+2"]
[Date "2023.05.16"]
[WhiteClock "0:00:14"]
[BlackClock "0:00:04"]

1. d4 {[%clk 0:03:00]}  g6 {[%clk 0:02:58]} 2. e4 {[%clk 0:02:56]}  Bg7 {[%clk 0:02:58]} 3. Nc3 {[%clk 0:02:55]}  c6 {[%clk 0:02:58]} 4. Nf3 {[%clk 0:02:53]}  d5 {[%clk 0:02:58]} 5. h3 {[%clk 0:02:41]}  dxe4 {[%clk 0:02:58]} 6. Nxe4 {[%clk 0:02:40]}  Nf6 {[%clk 0:02:58]} 7. Nxf6+ {[%clk 0:02:31]}  exf6 {[%clk 0:02:59]} 8. Bd3 {[%clk 0:02:20]}  O-O {[%clk 0:02:59]} 9. O-O {[%clk 0:02:18]}  f5 {[%clk 0:02:59]} 10. Re1 {[%clk 0:02:02]}  Nd7 {[%clk 0:02:58]} 11. Bf4 {[%clk 0:01:56]}  Nb6 {[%clk 0:02:57]} 12. Bg5 {[%clk 0:01:45]}  Bf6 {[%clk 0:02:50]} 13. Bxf6 {[%clk 0:01:39]}  Qxf6 {[%clk 0:02:51]} 14. Qd2 {[%clk 0:01:40]}  Be6 {[%clk 0:02:39]} 15. b3 {[%clk 0:01:39]}  Rad8 {[%clk 0:02:37]} 16. c4 {[%clk 0:01:33]}  Rd7 {[%clk 0:02:25]} 17. a4 {[%clk 0:01:25]}  Rfd8 {[%clk 0:02:24]} 18. a5 {[%clk 0:01:19]}  Na8 {[%clk 0:02:24]} 19. Qb4 {[%clk 0:01:12]}  Nc7 {[%clk 0:02:18]} 20. Ne5 {[%clk 0:01:02]}  Rxd4 {[%clk 0:02:15]} 21. Qxb7 {[%clk 0:00:56]}  Ne8 {[%clk 0:02:03]} 22. Rad1 {[%clk 0:00:53]}  Nd6 {[%clk 0:02:00]} 23. Qxa7 {[%clk 0:00:48]}  Ne4 {[%clk 0:01:53]} 24. Nxc6 {[%clk 0:00:40]}  Rxd3 {[%clk 0:01:53]} 25. Nxd8 {[%clk 0:00:37]}  Qxd8 {[%clk 0:01:49]} 26. Rxd3 {[%clk 0:00:28]}  Qxd3 {[%clk 0:01:50]} 27. Qb8+ {[%clk 0:00:29]}  Kg7 {[%clk 0:01:49]} 28. a6 {[%clk 0:00:23]}  Qd4 {[%clk 0:01:47]} 29. Rf1 {[%clk 0:00:20]}  Bd7 {[%clk 0:00:41]} 30. a7 {[%clk 0:00:20]}  Bc6 {[%clk 0:00:41]} 31. a8=Q {[%clk 0:00:20]}  Bxa8 {[%clk 0:00:41]} 32. Qxa8 {[%clk 0:00:20]}  Nc3 {[%clk 0:00:34]} 33. Qf3 {[%clk 0:00:19]}  Ne4 {[%clk 0:00:32]} 34. Qe3 {[%clk 0:00:19]}  Qb2 {[%clk 0:00:25]} 35. c5 {[%clk 0:00:19]}  Nd2 {[%clk 0:00:20]} 36. Rd1 {[%clk 0:00:18]}  Nxb3 {[%clk 0:00:19]} 37. c6 {[%clk 0:00:18]}  Qc2 {[%clk 0:00:19]} 38. Rd6 {[%clk 0:00:17]}  Nc5 {[%clk 0:00:10]} 39. Qe5+ {[%clk 0:00:16]}  Kh6 {[%clk 0:00:09]} 40. Rd4 {[%clk 0:00:16]}  Ne4 {[%clk 0:00:07]} 41. f3 {[%clk 0:00:13]}  Qc1+ {[%clk 0:00:02]} 42. Kh2 {[%clk 0:00:13]}  Nf2 {[%clk 0:00:02]} 43. Rh4+ {[%clk 0:00:12]}  Kg5 {[%clk 0:00:03]} 44. Qg3+ {[%clk 0:00:12]}  Kf6 {[%clk 0:00:04]} 45. Qxf2 {[%clk 0:00:12]}  Qxc6 {[%clk 0:00:03]} 46. Qd4+ {[%clk 0:00:12]}  Kg5 {[%clk 0:00:03]} 47. Rxh7 {[%clk 0:00:13]}  Qc7+ {[%clk 0:00:03]} 48. f4+ {[%clk 0:00:13]}  Qxf4+ {[%clk 0:00:04]} 49. Qxf4+ {[%clk 0:00:14]}  Kxf4 {[%clk 0:00:04]} 50. Rxf7 {[%clk 0:00:14]}  Kg5 {[%clk 0:00:05]} 51. g3 {[%clk 0:00:13]}  Kh6 {[%clk 0:00:05]} 52. Kg2 {[%clk 0:00:14]}  Kg5 {[%clk 0:00:05]} 53. Kf3 {[%clk 0:00:14]}  Kh6 {[%clk 0:00:04]} 54. h4 {[%clk 0:00:14]} 1-0


[Site "https://www.chess.com"]

[Event "Titled Tuesday Blitz May 16 Early 2023"]
[White "Hua, Lefong"]
[Black "Skaric, Djuro"]
[WhiteFideId "2602253"]
[BlackFideId "934569"]
[WhiteElo "2692"]
[BlackElo "2282"]
[Result "1-0"]
[Round "02"]
[TimeControl "180+2"]
[Date "2023.05.16"]
[WhiteClock "0:01:08"]
[BlackClock "0:00:47"]

1. d4 {[%clk 0:03:00]}  d6 {[%clk 0:03:00]} 2. e4 {[%clk 0:02:59]}  g6 {[%clk 0:03:01]} 3. c4 {[%clk 0:02:58]}  Bg7 {[%clk 0:03:01]} 4. f4 {[%clk 0:02:59]}  Nf6 {[%clk 0:03:01]} 5. Nc3 {[%clk 0:02:59]}  O-O {[%clk 0:03:01]} 6. Nf3 {[%clk 0:02:59]}  c5 {[%clk 0:03:02]} 7. d5 {[%clk 0:02:59]}  e6 {[%clk 0:03:02]} 8. Be2 {[%clk 0:02:59]}  exd5 {[%clk 0:03:02]} 9. cxd5 {[%clk 0:03:00]}  Re8 {[%clk 0:03:01]} 10. Nd2 {[%clk 0:03:00]}  Na6 {[%clk 0:03:01]} 11. O-O {[%clk 0:03:00]}  Nc7 {[%clk 0:03:01]} 12. a4 {[%clk 0:02:59]}  a6 {[%clk 0:03:01]} 13. Bf3 {[%clk 0:02:55]}  Bd7 {[%clk 0:03:00]} 14. Nc4 {[%clk 0:02:50]}  b5 {[%clk 0:02:56]} 15. Nxd6 {[%clk 0:02:46]}  b4 {[%clk 0:02:24]} 16. Nb1 {[%clk 0:02:31]}  Rf8 {[%clk 0:02:18]} 17. e5 {[%clk 0:02:29]}  Nfe8 {[%clk 0:02:18]} 18. Nxe8 {[%clk 0:02:22]}  Nxe8 {[%clk 0:02:15]} 19. Nd2 {[%clk 0:02:17]}  Rb8 {[%clk 0:02:12]} 20. b3 {[%clk 0:02:12]}  Nc7 {[%clk 0:02:10]} 21. Nc4 {[%clk 0:02:10]}  Na8 {[%clk 0:02:09]} 22. Be3 {[%clk 0:02:08]}  g5 {[%clk 0:01:37]} 23. Bxc5 {[%clk 0:01:53]}  gxf4 {[%clk 0:01:37]} 24. Bxf8 {[%clk 0:01:52]}  Qxf8 {[%clk 0:01:36]} 25. Qd4 {[%clk 0:01:50]}  Rc8 {[%clk 0:01:33]} 26. Qxf4 {[%clk 0:01:46]}  Nb6 {[%clk 0:01:22]} 27. Nxb6 {[%clk 0:01:36]}  Qc5+ {[%clk 0:01:21]} 28. Kh1 {[%clk 0:01:36]}  Qxb6 {[%clk 0:01:20]} 29. Bh5 {[%clk 0:01:26]}  Rf8 {[%clk 0:01:04]} 30. Bxf7+ {[%clk 0:01:22]}  Kh8 {[%clk 0:01:03]} 31. Rae1 {[%clk 0:01:20]}  Be8 {[%clk 0:00:56]} 32. e6 {[%clk 0:01:20]}  Bxf7 {[%clk 0:00:56]} 33. exf7 {[%clk 0:01:19]}  Qd8 {[%clk 0:00:54]} 34. d6 {[%clk 0:01:17]}  Bc3 {[%clk 0:00:52]} 35. Re8 {[%clk 0:01:08]}  Rxe8 {[%clk 0:00:51]} 36. fxe8=Q+ {[%clk 0:01:09]}  Qxe8 {[%clk 0:00:51]} 37. Qf8+ {[%clk 0:01:07]}  Qxf8 {[%clk 0:00:51]} 38. Rxf8+ {[%clk 0:01:08]}  Kg7 {[%clk 0:00:47]} 39. d7 {[%clk 0:01:08]} 1-0


[Site "https://www.chess.com"]

[Event "Titled Tuesday Blitz May 16 Early 2023"]
[White "Mendez Fortes, Eduardo Jesus"]
[Black "Maung, Maung Kyaw Zaw Hein"]
[WhiteFideId "3502376"]
[BlackFideId "13001698"]
[WhiteElo "2307"]
[BlackElo "2019"]
[Result "1-0"]
[Round "02"]
[TimeControl "180+2"]
[Date "2023.05.16"]
[WhiteClock "0:00:45"]
[BlackClock "0:00:50"]

1. e4 {[%clk 0:03:00]}  c6 {[%clk 0:02:59]} 2. d4 {[%clk 0:03:01]}  d5 {[%clk 0:03:00]} 3. Nc3 {[%clk 0:03:01]}  dxe4 {[%clk 0:03:00]} 4. Nxe4 {[%clk 0:03:02]}  Bf5 {[%clk 0:03:00]} 5. Ng3 {[%clk 0:03:02]}  Bg6 {[%clk 0:03:00]} 6. Nh3 {[%clk 0:03:03]}  e6 {[%clk 0:02:56]} 7. Nf4 {[%clk 0:03:03]}  Bd6 {[%clk 0:02:57]} 8. h4 {[%clk 0:03:03]}  Qc7 {[%clk 0:02:57]} 9. Nxg6 {[%clk 0:03:03]}  hxg6 {[%clk 0:02:58]} 10. Ne4 {[%clk 0:03:04]}  Nf6 {[%clk 0:02:57]} 11. Ng5 {[%clk 0:03:03]}  Nbd7 {[%clk 0:02:56]} 12. c3 {[%clk 0:03:02]}  Bf4 {[%clk 0:02:51]} 13. Bxf4 {[%clk 0:03:00]}  Qxf4 {[%clk 0:02:50]} 14. g3 {[%clk 0:03:01]}  Qd6 {[%clk 0:02:49]} 15. Bg2 {[%clk 0:02:58]}  O-O {[%clk 0:02:47]} 16. Qc2 {[%clk 0:02:54]}  e5 {[%clk 0:02:39]} 17. O-O-O {[%clk 0:02:52]}  Rfe8 {[%clk 0:02:37]} 18. dxe5 {[%clk 0:02:35]}  Qxe5 {[%clk 0:02:37]} 19. Kb1 {[%clk 0:02:30]}  Rad8 {[%clk 0:02:31]} 20. Qb3 {[%clk 0:02:29]}  Re7 {[%clk 0:02:18]} 21. f4 {[%clk 0:01:57]}  Qe2 {[%clk 0:02:13]} 22. Bf3 {[%clk 0:01:52]}  Qe3 {[%clk 0:02:02]} 23. a3 {[%clk 0:01:32]}  Qb6 {[%clk 0:02:00]} 24. Qxb6 {[%clk 0:01:27]}  axb6 {[%clk 0:02:01]} 25. h5 {[%clk 0:01:23]}  gxh5 {[%clk 0:02:00]} 26. Bxh5 {[%clk 0:01:23]}  Nxh5 {[%clk 0:01:59]} 27. Rxh5 {[%clk 0:01:23]}  f6 {[%clk 0:01:54]} 28. Rdh1 {[%clk 0:01:19]}  fxg5 {[%clk 0:01:18]} 29. Rh8+ {[%clk 0:01:17]}  Kf7 {[%clk 0:01:18]} 30. Rxd8 {[%clk 0:01:18]}  gxf4 {[%clk 0:01:19]} 31. gxf4 {[%clk 0:01:17]}  Nc5 {[%clk 0:01:18]} 32. Rhh8 {[%clk 0:01:12]}  Re2 {[%clk 0:01:16]} 33. f5 {[%clk 0:01:07]}  Kf6 {[%clk 0:01:10]} 34. Rdf8+ {[%clk 0:01:05]}  Kg5 {[%clk 0:01:09]} 35. Rh7 {[%clk 0:00:58]}  Na4 {[%clk 0:00:59]} 36. Rxg7+ {[%clk 0:00:56]}  Kh6 {[%clk 0:00:59]} 37. Rg6+ {[%clk 0:00:56]}  Kh7 {[%clk 0:00:59]} 38. Rf7+ {[%clk 0:00:55]}  Kh8 {[%clk 0:01:00]} 39. f6 {[%clk 0:00:47]}  Rxb2+ {[%clk 0:00:56]} 40. Kc1 {[%clk 0:00:46]}  Re2 {[%clk 0:00:53]} 41. Rh6+ {[%clk 0:00:45]}  Kg8 {[%clk 0:00:50]} 42. Rg7+ {[%clk 0:00:45]} 1-0


[Site "https://www.chess.com"]

[Event "Titled Tuesday Blitz May 16 Early 2023"]
[White "I_KID_you_not"]
[Black "Arabidze, Meri"]
[BlackFideId "13604040"]
[WhiteElo "2311"]
[BlackElo "2405"]
[Result "1-0"]
[Round "02"]
[TimeControl "180+2"]
[Date "2023.05.16"]
[WhiteClock "0:00:06"]
[BlackClock "0:00:02"]

1. d4 {[%clk 0:03:00]}  f5 {[%clk 0:02:59]} 2. Nc3 {[%clk 0:03:00]}  Nf6 {[%clk 0:02:59]} 3. Bf4 {[%clk 0:02:59]}  g6 {[%clk 0:02:56]} 4. h4 {[%clk 0:02:59]}  Nh5 {[%clk 0:02:49]} 5. Bh2 {[%clk 0:02:39]}  Bg7 {[%clk 0:02:48]} 6. e3 {[%clk 0:02:36]}  Nf6 {[%clk 0:02:40]} 7. Bf4 {[%clk 0:02:29]}  h6 {[%clk 0:02:34]} 8. Qd3 {[%clk 0:02:22]}  d6 {[%clk 0:02:21]} 9. O-O-O {[%clk 0:02:19]}  Nc6 {[%clk 0:02:17]} 10. Be2 {[%clk 0:01:56]}  O-O {[%clk 0:01:43]} 11. Nh3 {[%clk 0:01:37]}  Bd7 {[%clk 0:01:35]} 12. h5 {[%clk 0:01:31]}  e5 {[%clk 0:01:30]} 13. dxe5 {[%clk 0:01:14]}  dxe5 {[%clk 0:01:31]} 14. Bg3 {[%clk 0:01:08]}  g5 {[%clk 0:01:31]} 15. Qc4+ {[%clk 0:00:46]}  Kh7 {[%clk 0:01:31]} 16. f4 {[%clk 0:00:33]}  exf4 {[%clk 0:01:26]} 17. exf4 {[%clk 0:00:33]}  g4 {[%clk 0:01:27]} 18. Ng5+ {[%clk 0:00:32]}  hxg5 {[%clk 0:01:24]} 19. fxg5 {[%clk 0:00:32]}  Nxh5 {[%clk 0:00:53]} 20. Rxh5+ {[%clk 0:00:31]}  Kg6 {[%clk 0:00:54]} 21. Rdh1 {[%clk 0:00:24]}  Rh8 {[%clk 0:00:22]} 22. Rxh8 {[%clk 0:00:17]}  Qxg5+ {[%clk 0:00:17]} 23. Bf4 {[%clk 0:00:17]}  Rxh8 {[%clk 0:00:17]} 24. Rxh8 {[%clk 0:00:13]}  Qf6 {[%clk 0:00:12]} 25. Qg8 {[%clk 0:00:10]}  Be6 {[%clk 0:00:07]} 26. Qh7+ {[%clk 0:00:09]}  Kf7 {[%clk 0:00:07]} 27. Qh5+ {[%clk 0:00:09]}  Qg6 {[%clk 0:00:06]} 28. Qxg6+ {[%clk 0:00:09]}  Kxg6 {[%clk 0:00:07]} 29. Re8 {[%clk 0:00:06]}  Nd4 {[%clk 0:00:07]} 30. Bd3 {[%clk 0:00:05]}  Bf7 {[%clk 0:00:05]} 31. Re7 {[%clk 0:00:05]}  c5 {[%clk 0:00:05]} 32. Rxb7 {[%clk 0:00:05]}  c4 {[%clk 0:00:05]} 33. Bxc4 {[%clk 0:00:04]}  Ne6 {[%clk 0:00:06]} 34. Bxe6 {[%clk 0:00:03]}  Bxe6 {[%clk 0:00:07]} 35. Rxa7 {[%clk 0:00:04]}  Bd4 {[%clk 0:00:06]} 36. Ra6 {[%clk 0:00:03]}  Kf7 {[%clk 0:00:07]} 37. Rxe6 {[%clk 0:00:03]}  Kxe6 {[%clk 0:00:07]} 38. Kd2 {[%clk 0:00:03]}  Bf2 {[%clk 0:00:07]} 39. g3 {[%clk 0:00:03]}  Bb6 {[%clk 0:00:06]} 40. a4 {[%clk 0:00:03]}  Ba5 {[%clk 0:00:06]} 41. Kd3 {[%clk 0:00:03]}  Bb4 {[%clk 0:00:06]} 42. Kc4 {[%clk 0:00:04]}  Bd6 {[%clk 0:00:06]} 43. Bxd6 {[%clk 0:00:04]}  Kxd6 {[%clk 0:00:07]} 44. Kd4 {[%clk 0:00:04]}  Ke6 {[%clk 0:00:05]} 45. b4 {[%clk 0:00:04]}  f4 {[%clk 0:00:05]} 46. gxf4 {[%clk 0:00:04]}  Kf5 {[%clk 0:00:05]} 47. Ke3 {[%clk 0:00:05]}  g3 {[%clk 0:00:03]} 48. Kf3 {[%clk 0:00:05]}  g2 {[%clk 0:00:02]} 49. Kxg2 {[%clk 0:00:06]} 1-0


[Site "https://www.chess.com"]

[Event "Titled Tuesday Blitz May 16 Early 2023"]
[White "Nitish Belurkar"]
[Black "Rosh Jain"]
[WhiteFideId "5084768"]
[BlackFideId "25789465"]
[WhiteElo "2352"]
[BlackElo "2233"]
[Result "1-0"]
[Round "02"]
[TimeControl "180+2"]
[Date "2023.05.16"]
[WhiteClock "0:02:15"]
[BlackClock "0:01:25"]

1. d4 {[%clk 0:03:00]}  Nf6 {[%clk 0:02:55]} 2. Nf3 {[%clk 0:03:01]}  e6 {[%clk 0:02:52]} 3. Nbd2 {[%clk 0:03:01]}  d5 {[%clk 0:02:52]} 4. e3 {[%clk 0:03:02]}  c5 {[%clk 0:02:52]} 5. c3 {[%clk 0:03:02]}  Nc6 {[%clk 0:02:52]} 6. Bd3 {[%clk 0:03:03]}  Bd6 {[%clk 0:02:52]} 7. O-O {[%clk 0:03:03]}  O-O {[%clk 0:02:51]} 8. Qe2 {[%clk 0:03:04]}  b6 {[%clk 0:02:51]} 9. e4 {[%clk 0:03:03]}  dxe4 {[%clk 0:02:51]} 10. Nxe4 {[%clk 0:03:04]}  Bb7 {[%clk 0:02:48]} 11. Nxf6+ {[%clk 0:03:00]}  Qxf6 {[%clk 0:02:42]} 12. Bg5 {[%clk 0:02:55]}  Nxd4 {[%clk 0:02:42]} 13. cxd4 {[%clk 0:02:55]}  Bxf3 {[%clk 0:02:42]} 14. Qd2 {[%clk 0:02:56]}  Qxd4 {[%clk 0:02:36]} 15. gxf3 {[%clk 0:02:56]}  h6 {[%clk 0:02:17]} 16. Be3 {[%clk 0:02:56]}  Qe5 {[%clk 0:02:17]} 17. f4 {[%clk 0:02:54]}  Qh5 {[%clk 0:02:17]} 18. Bc2 {[%clk 0:02:47]}  Rfd8 {[%clk 0:02:13]} 19. Qd1 {[%clk 0:02:44]}  Qh4 {[%clk 0:02:11]} 20. Qf3 {[%clk 0:02:44]}  Bc7 {[%clk 0:02:06]} 21. Rad1 {[%clk 0:02:43]}  Rac8 {[%clk 0:02:05]} 22. Kh1 {[%clk 0:02:40]}  Bb8 {[%clk 0:02:05]} 23. Qe4 {[%clk 0:02:38]}  g6 {[%clk 0:02:03]} 24. Rg1 {[%clk 0:02:36]}  Kf8 {[%clk 0:02:02]} 25. Qb7 {[%clk 0:02:31]}  Qh5 {[%clk 0:01:57]} 26. a3 {[%clk 0:02:22]}  Bd6 {[%clk 0:01:43]} 27. Rxd6 {[%clk 0:02:21]}  Rxd6 {[%clk 0:01:39]} 28. Qxc8+ {[%clk 0:02:21]}  Kg7 {[%clk 0:01:39]} 29. Qb7 {[%clk 0:02:21]}  Rd5 {[%clk 0:01:39]} 30. Be4 {[%clk 0:02:20]}  Rd1 {[%clk 0:01:38]} 31. Bf3 {[%clk 0:02:17]}  Rxg1+ {[%clk 0:01:34]} 32. Kxg1 {[%clk 0:02:17]}  Qf5 {[%clk 0:01:34]} 33. Qe4 {[%clk 0:02:18]}  Qh3 {[%clk 0:01:34]} 34. Qe5+ {[%clk 0:02:16]}  Kg8 {[%clk 0:01:34]} 35. Qe4 {[%clk 0:02:13]}  Kg7 {[%clk 0:01:32]} 36. Bg2 {[%clk 0:02:13]}  Qg4 {[%clk 0:01:32]} 37. h3 {[%clk 0:02:14]}  Qd1+ {[%clk 0:01:31]} 38. Kh2 {[%clk 0:02:14]}  Qa1 {[%clk 0:01:29]} 39. Qe5+ {[%clk 0:02:14]}  Kg8 {[%clk 0:01:28]} 40. f5 {[%clk 0:02:15]}  exf5 {[%clk 0:01:28]} 41. Bxh6 {[%clk 0:02:15]}  Qxb2 {[%clk 0:01:23]} 42. Qxb2 {[%clk 0:02:16]}  f6 {[%clk 0:01:24]} 43. Qxf6 {[%clk 0:02:15]}  Kh7 {[%clk 0:01:25]} 44. Qg7# {[%clk 0:02:15]} 1-0


[Site "https://www.chess.com"]